bitfinex/quotes_ETHUSD_20241225
["timestamp","ask_amount","ask_price","bid_price","bid_amount"]
[1735091308025,0.7655,3480.2,3479.7,2.8738]
[1735091308162,0.7655,3480.2,3479.5,2.7436725]
[1735091308163,0.7655,3480.7,3480.0,2.87356]
[1735091311717,0.7655,3480.7,3480.1,2.87345]
[1735091317422,0.7655,3480.7,3480.0,0.58631639]
[1735091317737,0.7655,3480.7,3480.1,0.02873179]
[1735091317871,0.7655,3480.7,3480.0,1.38461639]
[1735091318073,0.7655,3480.7,3480.0,2.52803425]
[1735091318320,0.7655,3480.7,3480.0,5.27170675]
[1735091318620,0.7655,3480.7,3480.2,2.87331]
[1735091319624,0.7655,3480.7,3480.3,2.8733]
[1735091319783,7.07055761,3481.3,3480.3,2.8733]
[1735091319991,0.8283,3481.2,3480.3,2.8733]
[1735091320194,0.8283,3481.2,3480.3,5.36259346]
[1735091320674,2.87258,3481.2,3480.3,2.48929346]
[1735091321027,0.8283,3481.1,3480.3,2.48929346]
[1735091321374,0.8283,3481.1,3480.2,2.48929346]
[1735091321573,0.8283,3481.1,3480.2,3.85150372]
[1735091323008,0.8283,3481.1,3480.2,1.36221026]
[1735091327551,0.8283,3481.1,3480.2,4.23560026]
[1735091328154,0.8283,3481.1,3480.3,2.48970706]
[1735091330761,0.8283,3481.1,3480.6,0.57243947]
[1735091333209,0.8283,3481.1,3480.6,0.77906584]
[1735091338773,0.8283,3481.1,3480.7,2.87298]
[1735091340144,0.8283,3481.1,3480.8,0.9959205]
[1735091342523,0.8283,3481.1,3480.6,1.19956222]
[1735091342725,3.70102,3481.1,3480.6,1.19956222]
[1735091342941,2.87272,3481.1,3480.6,1.19956222]
[1735091343142,0.823,3481.0,3480.3,2.69339696]
[1735091343441,0.823,3481.0,3480.3,4.51819947]
[1735091343645,0.823,3480.9,3480.3,4.51819947]
[1735091344659,0.823,3480.9,3480.3,1.82480251]
[1735091345484,0.823,3480.9,3480.4,0.85622961]
[1735091345777,0.823,3480.9,3480.3,4.56847501]
[1735091345982,0.823,3480.9,3480.4,0.85467441]
[1735091348433,0.823,3480.9,3480.4,3.72788441]
[1735091349235,1.99554761,3481.4,3480.7,2.7436725]
[1735091349437,1.19804761,3481.4,3481.0,2.8727]
[1735091349705,1.19804761,3481.4,3481.1,0.8275]
[1735091349988,1.19804761,3481.4,3481.1,3.70011]
[1735091350171,1.19804761,3481.4,3481.2,0.370011]
[1735091350556,0.7975,3481.7,3481.2,0.370011]
[1735091351684,0.7975,3481.7,3481.1,0.8275]
[1735091352159,0.7975,3481.7,3481.2,1.49409314]
[1735091353339,0.7975,3481.7,3481.2,1.52281559]
[1735091353542,0.7975,3481.7,3481.1,8.66892086]
[1735091355285,0.7975,3481.7,3481.2,2.49005607]
[1735091355504,0.7975,3481.7,3481.3,0.98684831]
[1735091355656,0.7975,3481.7,3481.3,0.93644831]
[1735091356589,0.7975,3481.7,3481.1,4.50578701]
[1735091357959,0.7975,3481.7,3481.1,6.17886479]
[1735091358288,0.7975,3481.7,3481.2,2.87251]
[1735091359540,0.7975,3481.7,3481.3,0.99534528]
[1735091360191,0.7975,3481.7,3481.3,0.79534528]
[1735091360723,0.7975,3481.7,3481.3,1.32545851]
[1735091360906,0.7975,3481.7,3481.3,0.53011323]
[1735091362191,0.7975,3481.7,3481.2,1.49284608]
[1735091363513,0.7975,3481.7,3481.1,3.30622479]
[1735091366299,0.7975,3481.7,3481.1,2.7436725]
[1735091366497,2.87227,3481.6,3480.9,1.19956222]
[1735091366683,3.63504,3481.4,3480.9,1.19956222]
[1735091366996,0.7626,3481.3,3480.9,1.19956222]
[1735091367999,0.7626,3481.3,3480.6,1.78618885]
[1735091369037,0.7626,3481.3,3480.6,1.19956222]
[1735091369817,0.7626,3481.3,3480.6,1.49304701]
[1735091370131,0.7626,3481.3,3480.6,2.58409836]
[1735091371432,0.7626,3481.3,3480.6,1.09105135]
[1735091374028,0.7626,3481.3,3480.7,1.49354919]
[1735091375911,0.781,3481.2,3480.7,1.49354919]
[1735091376813,0.781,3481.2,3480.4,4.36676919]
[1735091377924,0.781,3481.2,3480.5,0.02872954]
[1735091378108,0.781,3481.2,3480.6,2.7436725]
[1735091378309,0.781,3481.2,3480.6,5.6167225]
[1735091379408,0.781,3481.2,3480.6,2.7436725]
[1735091379612,0.781,3481.2,3480.5,1.49354919]
[1735091379830,0.781,3481.1,3480.5,1.49354919]
[1735091380030,0.781,3481.1,3480.5,1.19956222]
[1735091381343,2.87306,3480.7,3480.3,3.68945947]
[1735091381516,2.87315,3480.5,3480.3,3.68945947]
[1735091381715,0.781,3480.4,3480.3,3.68945947]
[1735091382516,3.65423,3480.4,3480.3,3.68945947]
[1735091382863,4.20423,3480.4,3480.3,3.68945947]
[1735091383191,7.20423,3480.4,3480.3,3.68945947]
[1735091383361,0.781,3479.9,3479.6,2.19552112]
[1735091384664,0.781,3479.9,3479.1,2.7436725]
[1735091386355,2.87365,3479.9,3479.1,2.7436725]
[1735091386513,0.812,3479.8,3479.1,2.7436725]
[1735091386712,1.180565,3479.8,3478.8,2.7436725]
[1735091386996,1.180565,3479.8,3478.7,8.85]
[1735091386997,0.812,3479.5,3478.7,8.85]
[1735091387774,0.812,3479.4,3478.7,8.85]
[1735091389175,0.812,3479.4,3478.4,2.7436725]
[1735091389380,0.812,3479.3,3478.6,0.57731982]
[1735091389726,0.812,3479.3,3478.4,2.7436725]
[1735091389928,0.812,3479.3,3478.4,3.50713897]
[1735091390766,0.812,3479.3,3478.4,4.08250216]
[1735091391360,0.812,3479.3,3478.4,6.95738216]
[1735091391587,0.812,3479.3,3478.4,7.10697194]
[1735091391904,0.669,3479.3,3478.4,7.10697194]
[1735091392105,0.669,3479.3,3478.5,0.71069719]
[1735091396707,0.669,3479.3,3479.2,0.57898446]
[1735091398676,0.7662,3479.1,3478.0,5.7436725]
[1735091398864,2.87432,3479.1,3478.1,3.0]
[1735091399069,0.7662,3479.0,3478.2,0.86188825]
[1735091399864,0.7662,3479.0,3478.1,0.14951381]
[1735091400059,2.8745,3478.9,3478.5,0.58422853]
[1735091400409,2.8745,3478.9,3478.1,0.14951381]
[1735091400410,0.7662,3478.8,3478.1,0.14951381]
[1735091400963,0.7662,3478.5,3477.0,8.85]
[1735091401163,0.7662,3478.0,3477.0,3.64981]
[1735091401396,0.7662,3478.0,3477.0,2.87601]
[1735091403483,0.7662,3477.8,3476.6,2.7436725]
[1735091403667,3.64194,3477.4,3476.6,2.7436725]
[1735091403866,3.64194,3477.4,3476.4,1.19956222]
[1735091403867,2.87588,3477.2,3476.7,0.58796952]
[1735091404120,2.87588,3477.2,3476.4,1.19956222]
[1735091404121,0.7662,3477.1,3476.4,1.19956222]
[1735091404321,0.7662,3477.1,3476.2,5.6203525]
[1735091405286,0.7662,3477.1,3476.3,0.58910068]
[1735091405503,0.7662,3477.1,3476.4,0.62094532]
[1735091406018,0.7662,3477.1,3476.6,5.6200125]
[1735091406418,0.7662,3477.1,3476.6,2.7436725]
[1735091409120,0.7662,3477.1,3476.7,0.03197673]
[1735091410022,0.7662,3477.1,3476.3,0.58910068]
[1735091410172,0.7662,3477.1,3476.8,0.02646526]
[1735091410376,0.7662,3477.1,3476.3,0.58910068]
[1735091410578,0.7662,3477.1,3476.9,0.02645326]
[1735091410776,0.7662,3477.1,3476.3,0.58910068]
[1735091411215,0.7662,3477.1,3476.4,0.0265532]
[1735091412323,3.64218,3477.1,3476.4,0.0265532]
[1735091412626,4.006398,3477.1,3476.4,0.0265532]
[1735091413178,4.006398,3477.1,3476.2,2.7436725]
[1735091413411,3.64218,3477.1,3476.5,0.02659258]
[1735091413723,3.64218,3477.1,3476.6,0.02658059]
[1735091414028,3.64218,3477.1,3476.2,2.7436725]
[1735091414192,3.64218,3477.1,3476.7,0.02656859]
[1735091414393,3.64218,3477.1,3476.2,2.7436725]
[1735091414596,3.64218,3477.1,3476.8,0.0265566]
[1735091414910,3.64218,3477.1,3476.9,0.02654461]
[1735091415226,0.8012,3476.9,3476.2,2.7436725]
[1735091415527,0.8012,3476.7,3476.3,0.02664512]
[1735091415714,1.168947,3476.7,3475.8,2.7436725]
[1735091416025,0.8012,3476.7,3476.4,0.02663312]
[1735091416175,0.8012,3476.7,3475.8,2.7436725]
[1735091416577,0.8012,3476.7,3475.9,0.02778944]
[1735091417246,2.87629,3476.7,3475.9,0.02778944]
[1735091417530,0.8012,3476.5,3475.9,0.02778944]
[1735091417697,0.8012,3476.5,3475.5,4.22788382]
[1735091417898,0.8012,3476.5,3476.0,0.02777658]
[1735091418082,0.8012,3476.5,3475.5,4.22788382]
[1735091418277,0.8012,3476.5,3476.1,0.02776373]
[1735091418600,0.8012,3476.5,3475.5,4.22788382]
[1735091418794,0.8012,3476.5,3476.2,0.02775088]
[1735091419128,3.0,3476.9,3476.3,0.02773802]
[1735091419326,0.8012,3476.3,3475.5,0.57993382]
[1735091419900,3.67782,3476.3,3475.5,0.57993382]
[1735091420096,0.55,3476.4,3474.9,3.8021]
[1735091420300,0.8254,3476.3,3474.9,0.8021]
[1735091420516,0.8254,3476.3,3474.8,8.6215225]
[1735091420517,0.8254,3475.8,3474.8,8.6215225]
[1735091420683,3.70243,3475.8,3474.9,0.57678629]
[1735091421413,0.8254,3475.8,3474.9,2.87775]
[1735091421621,0.8254,3475.8,3475.0,0.56214225]
[1735091422623,0.8254,3475.8,3475.2,2.7436725]
[1735091422806,0.8254,3476.1,3475.6,5.6208625]
[1735091423132,2.87615,3476.9,3475.8,2.87699]
[1735091423337,0.8254,3477.0,3475.6,6.4229425]
[1735091423482,0.40752244,3477.1,3475.6,9.26922881]
[1735091423483,0.8254,3476.6,3475.6,9.26922881]
[1735091423683,3.70177,3476.6,3475.6,9.26922881]
[1735091423881,3.70177,3476.6,3475.6,7.00773411]
[1735091424334,0.8254,3476.6,3475.6,7.00773411]
[1735091424752,2.87857,3474.0,3473.7,1.81859423]
[1735091424958,5.75488,3475.3,3473.1,2.90179613]
[1735091424959,0.8254,3473.8,3473.1,1.79957182]
[1735091425243,2.8791,3473.3,3473.1,1.79957182]
[1735091425413,0.8254,3473.3,3473.1,1.79957182]
[1735091425812,3.7045,3473.3,3473.2,3.01209576]
[1735091426011,4.07495,3473.3,3473.2,3.01209576]
[1735091427926,1.19585,3473.3,3471.9,2.88025]
[1735091428238,2.87919,3473.2,3472.0,3.8021]
[1735091428810,0.8254,3473.1,3471.7,0.56802865]
[1735091428996,2.87957,3472.8,3471.7,1.87810352]
[1735091429203,0.8254,3472.9,3471.7,0.56802865]
[1735091429403,2.87986,3472.4,3471.7,0.56802865]
[1735091430516,3.0,3472.7,3471.7,0.56802865]
[1735091430714,0.8254,3472.5,3471.2,0.8021]
[1735091430910,0.8254,3472.5,3470.8,0.8021]
[1735091430911,2.88027,3471.9,3470.8,0.8021]
[1735091431349,3.70577,3471.8,3470.4,3.68359]
[1735091431899,0.8254,3471.0,3470.4,0.5817945]
[1735091432144,5.7436725,3472.1,3470.5,0.0549898]
[1735091432145,2.88048,3471.7,3470.5,0.0549898]
[1735091432369,2.88053,3471.6,3470.5,0.0549898]
[1735091432502,1.112781,3471.5,3470.5,0.0549898]
[1735091432814,0.8254,3471.5,3470.5,0.0549898]
[1735091433951,0.8254,3471.5,3470.6,0.05737207]
[1735091434447,0.8254,3471.5,3470.3,2.88158]
[1735091434653,0.8254,3471.5,3470.7,0.05735915]
[1735091434943,3.70603,3471.5,3470.4,0.05739792]
[1735091435103,3.0,3471.9,3470.8,0.05734623]
[1735091435443,3.762,3471.9,3470.6,2.88129]
[1735091435658,3.762,3471.9,3470.9,0.05733331]
[1735091435817,3.762,3471.9,3470.7,2.93859915]
[1735091436029,0.66422,3471.8,3470.7,3.58345632]
[1735091436666,3.762,3471.9,3470.9,2.88106]
[1735091436667,0.762,3471.9,3470.9,2.88106]
[1735091437166,0.762,3471.9,3471.0,0.05766957]
[1735091437934,0.762,3471.9,3470.7,0.64485717]
[1735091438267,0.762,3471.9,3470.7,3.52607717]
[1735091438447,0.762,3471.9,3470.8,0.05769541]
[1735091438650,0.762,3471.9,3470.8,1.67770267]
[1735091439372,0.762,3471.9,3470.8,0.05769541]
[1735091440465,4.19309,3470.9,3470.8,0.05769541]
[1735091440777,3.64309,3470.9,3470.2,0.13]
[1735091441115,3.64309,3470.9,3470.3,0.04879843]
[1735091441380,4.007399,3470.9,3470.2,0.13]
[1735091441862,2.8813,3470.7,3470.3,0.04879843]
[1735091442167,2.8813,3470.7,3470.2,0.13]
[1735091442538,2.8813,3470.7,3470.3,0.04879843]
[1735091442764,2.8813,3470.7,3470.2,0.13]
[1735091443067,1.126309,3470.9,3470.3,0.04879843]
[1735091443270,4.007409,3470.9,3470.3,0.04879843]
[1735091443450,0.762,3470.9,3470.3,0.04879843]
[1735091449933,0.8196,3471.2,3470.3,0.04879843]
[1735091450226,2.88093,3471.1,3470.3,0.04879843]
[1735091450447,2.88103,3471.0,3470.3,0.04879843]
[1735091451066,3.251093,3471.0,3470.3,0.04879843]
[1735091451589,2.88109,3470.9,3470.3,0.04879843]
[1735091451787,0.370063,3471.0,3470.3,0.04879843]
[1735091452042,0.370063,3471.0,3470.2,0.13]
[1735091452332,0.370063,3471.0,3470.3,0.04879843]
[1735091452539,2.88122,3470.8,3470.2,0.13]
[1735091452701,4.25119,3470.3,3470.2,0.13]
[1735091456361,0.8196,3470.3,3470.2,0.13]
[1735091456524,0.8196,3470.7,3470.2,0.13]
[1735091457557,2.88143,3470.5,3470.2,0.13]
[1735091458414,3.50606144,3470.5,3470.2,0.13]
[1735091458775,0.62463144,3470.5,3470.2,0.13]
[1735091459059,2.88135,3470.6,3470.2,0.13]
[1735091459358,0.8196,3471.1,3470.3,0.82881788]
[1735091460922,3.8196,3471.1,3470.3,0.82881788]
[1735091461124,3.0,3471.1,3470.3,0.82881788]
[1735091462451,0.8196,3471.4,3470.3,0.82881788]
[1735091462655,2.88026,3471.9,3470.4,2.88149]
[1735091462852,2.88059,3471.6,3470.4,2.88149]
[1735091463036,3.69995,3471.8,3470.5,0.04322416]
[1735091463238,0.8196,3472.5,3470.9,0.7838]
[1735091463427,0.8196,3472.5,3471.1,0.7838]
[1735091463623,2.87922,3473.2,3471.2,11.62247718]
[1735091463624,0.8196,3473.0,3471.2,11.62247718]
[1735091463827,2.87962,3472.7,3471.6,0.7838]
[1735091464022,2.87962,3472.7,3471.6,3.66431]
[1735091464246,0.8196,3473.0,3471.6,3.66431]
[1735091464247,0.8196,3473.0,3471.7,0.40947723]
[1735091464569,2.87944,3472.9,3471.7,0.40947723]
[1735091464756,0.8196,3473.0,3471.7,0.04304623]
[1735091464952,0.8196,3473.0,3471.7,2.92347623]
[1735091464953,2.87952,3472.8,3471.7,2.92347623]
[1735091465539,0.55,3472.9,3471.7,0.04304623]
[1735091465826,0.55,3472.7,3471.7,0.04304623]
[1735091466054,2.87988,3472.4,3471.7,0.04304623]
[1735091467168,4.19315,3471.8,3471.7,6.23e-06]
[1735091467374,2.88114,3470.9,3469.8,2.88197]
[1735091467555,2.88129,3470.7,3469.7,0.7842]
[1735091467754,2.88129,3470.7,3470.3,0.03347945]
[1735091467988,0.419409,3470.7,3469.7,0.7842]
[1735091468299,2.88139,3470.6,3469.7,0.7842]
[1735091468497,2.88145,3470.5,3469.7,0.7842]
[1735091470901,2.8811,3470.9,3469.8,2.88193]
[1735091471101,0.55,3471.0,3470.3,0.81529064]
[1735091472076,2.88102,3471.0,3470.3,0.81529064]
[1735091472604,3.0,3471.1,3470.3,0.81529064]
[1735091472804,3.61228,3471.1,3470.3,0.81529064]
[1735091474113,2.88102,3471.0,3470.3,0.81529064]
[1735091475686,0.73128,3471.1,3470.3,0.81529064]
[1735091475891,3.73128,3471.1,3470.3,0.81529064]
[1735091476205,0.73128,3471.1,3470.3,0.81529064]
[1735091476423,2.88103,3471.0,3470.3,0.81529064]
[1735091476604,2.88103,3471.0,3470.3,0.7842]
[1735091476941,2.88103,3471.0,3470.4,0.03107772]
[1735091477634,0.73128,3471.1,3470.4,0.03107772]
[1735091478138,3.0,3471.1,3470.4,0.03107772]
[1735091480188,2.88093,3471.1,3470.4,0.03107772]
[1735091480930,0.7628,3471.4,3470.4,0.03107772]
[1735091480931,3.0,3471.2,3470.4,0.03107772]
[1735091482036,3.0,3471.1,3470.4,0.03107772]
[1735091482594,1.19804761,3471.5,3470.5,2.88141]
[1735091482791,1.19804761,3471.5,3470.7,0.8217]
[1735091483241,1.19804761,3471.5,3470.8,0.03166639]
[1735091483614,1.19804761,3471.5,3470.9,3.70278]
[1735091483937,1.19804761,3471.5,3471.1,0.8217]
[1735091484290,1.19804761,3471.5,3471.3,2.8807]
[1735091484511,2.39609523,3471.9,3471.3,2.8807]
[1735091484512,1.19804761,3471.9,3471.4,1.04753147]
[1735091484728,1.19804761,3471.9,3471.4,0.7563]
[1735091485909,1.19804761,3471.9,3470.8,0.7563]
[1735091486107,2.88001,3472.2,3471.5,0.03157596]
[1735091486351,2.88034,3471.9,3470.8,0.7563]
[1735091486561,0.55,3472.1,3471.6,0.03156305]
[1735091486766,2.88043,3471.7,3470.8,0.7563]
[1735091487058,2.88043,3471.7,3470.5,1.1923794]
[1735091487059,0.55,3471.7,3470.5,1.1923794]
[1735091487364,3.7922,3471.6,3470.5,1.1923794]
[1735091487652,2.88097,3471.1,3470.5,1.1923794]
[1735091488022,2.88097,3471.1,3470.4,0.7563]
[1735091488225,0.288097,3471.1,3470.4,0.7563]
[1735091488556,0.7922,3471.6,3470.4,0.7563]
[1735091488557,2.88104,3471.0,3470.4,0.7563]
[1735091491013,2.88093,3471.1,3470.4,0.7563]
[1735091492117,2.88078,3471.3,3470.4,0.7563]
[1735091492533,3.67276,3471.6,3470.4,0.7563]
[1735091492719,0.55,3471.5,3470.5,2.91238724]
[1735091492933,1.09208076,3471.5,3470.5,2.91238724]
[1735091493562,3.43061,3471.5,3470.5,0.03098724]
[1735091495121,2.88061,3471.5,3470.5,2.91238724]
[1735091495463,4.96714761,3471.9,3470.6,0.7784]
[1735091495618,2.88053,3471.6,3470.6,0.7784]
[1735091495815,2.88053,3471.6,3470.7,0.0309614]
[1735091496026,0.343053,3471.5,3470.7,0.0309614]
[1735091497053,0.55,3471.8,3470.7,0.0309614]
[1735091497054,2.88071,3471.4,3470.7,0.0309614]
[1735091498164,0.55,3471.8,3470.7,0.0309614]
[1735091498363,3.0,3471.8,3470.9,2.88106]
[1735091498666,3.0,3471.8,3471.0,0.03099694]
[1735091498833,0.74213586,3471.7,3471.0,0.03099694]
[1735091499421,2.88051,3471.6,3471.0,0.03099694]
[1735091499618,2.88051,3471.6,3470.8,0.7784]
[1735091500118,2.88051,3471.6,3470.9,0.03100986]
[1735091502565,2.88034,3471.9,3470.9,0.03100986]
[1735091502748,2.88034,3471.9,3471.0,0.7784]
[1735091502954,3.39938886,3471.9,3471.0,0.80939694]
[1735091503551,0.51904886,3471.9,3471.0,0.80939694]
[1735091503758,2.88035,3471.8,3471.0,0.80939694]
[1735091504181,3.223181,3472.0,3471.0,0.80939694]
[1735091504353,0.343001,3472.0,3471.0,0.80939694]
[1735091504549,2.8805,3471.7,3471.0,0.80939694]
[1735091506883,3.43029,3471.9,3471.0,0.80939694]
[1735091507095,0.343001,3472.0,3471.1,3.65932]
[1735091507619,0.343001,3472.0,3471.2,0.03059372]
[1735091507989,1.19804761,3472.2,3471.3,0.7784]
[1735091508187,1.19804761,3472.2,3471.4,0.7784]
[1735091508355,1.19804761,3472.2,3471.4,0.80845333]
[1735091508554,1.19804761,3472.2,3471.5,2.88059]
[1735091508752,1.19804761,3472.2,3471.6,0.7784]
[1735091509020,1.19804761,3472.2,3471.6,3.68879174]
[1735091509195,1.19804761,3472.5,3471.7,2.88042]
[1735091509507,1.19804761,3472.5,3471.8,0.78]
[1735091509719,1.19804761,3472.5,3472.3,0.78]
[1735091510404,1.19804761,3472.5,3472.4,0.02970699]
[1735091510757,1.19804761,3473.1,3472.4,0.02970699]
[1735091510958,1.19804761,3473.1,3472.3,0.78]
[1735091511193,1.19804761,3473.1,3472.5,0.02969408]
[1735091511426,1.3807,3473.0,3472.0,0.78]
[1735091512740,3.0,3473.4,3472.2,2.87998]
[1735091512894,2.87919,3473.2,3472.2,2.87998]
[1735091513248,2.87919,3473.2,3472.3,0.02805368]
[1735091513796,2.87919,3473.2,3472.4,0.78]
[1735091514898,2.87919,3473.2,3472.5,0.02802786]
[1735091515638,0.55,3473.2,3472.5,0.02802786]
[1735091516541,2.02874761,3473.8,3472.6,0.78]
[1735091516739,1.19804761,3473.9,3472.8,0.78]
[1735091516944,1.19804761,3473.9,3472.9,2.87943]
[1735091517154,1.19804761,3473.9,3473.0,0.78]
[1735091517299,0.5873569,3473.8,3473.0,3.65934]
[1735091517506,1.19804761,3473.9,3473.1,0.02790471]
[1735091517812,1.19804761,3473.9,3473.4,0.78]
[1735091518009,1.19804761,3473.9,3473.5,0.02755032]
[1735091518530,3.0,3474.3,3473.5,0.02755032]
[1735091518848,0.38307,3474.3,3473.5,0.02755032]
[1735091519094,3.0,3474.5,3473.5,2.90641032]
[1735091519248,1.19804761,3474.7,3473.6,3.6588]
[1735091519453,2.87803,3474.6,3473.6,0.78]
[1735091519649,2.87803,3474.6,3473.7,0.02717615]
[1735091519964,2.87812,3474.5,3473.7,0.02717615]
[1735091520176,0.49068676,3474.5,3473.7,0.02717615]
[1735091520376,0.8307,3474.8,3473.7,0.02717615]
[1735091520576,2.87838,3474.2,3473.6,0.78]
[1735091520776,2.87838,3474.2,3473.7,0.03206339]
[1735091521486,0.55,3474.4,3473.7,0.03206339]
[1735091521671,3.42819,3474.4,3473.7,0.03206339]
[1735091521862,3.42819,3474.4,3473.6,0.78]
[1735091522071,3.55,3474.5,3473.8,0.0275792]
[1735091522414,2.8782,3474.4,3473.9,0.02756538]
[1735091522714,0.55,3474.3,3473.6,0.78]
[1735091523282,0.55,3474.3,3473.7,0.02759302]
[1735091523500,3.0,3474.6,3473.7,0.02759302]
[1735091523699,2.87795,3474.7,3473.7,0.39623532]
[1735091523896,0.55,3474.6,3473.7,0.39623532]
[1735091524101,0.8307,3474.8,3473.8,0.78]
[1735091524102,3.0,3474.8,3473.8,0.78]
[1735091524415,2.87786,3474.8,3473.8,0.78]
[1735091524612,2.87786,3474.8,3473.9,0.03203114]
[1735091524816,2.87786,3474.8,3473.8,0.78]
[1735091525012,2.87786,3474.8,3473.9,0.39775014]
[1735091525436,3.8307,3475.2,3473.9,0.39775014]
[1735091525729,0.55,3474.9,3474.0,0.7836]
[1735091526033,0.55,3474.9,3474.1,0.0318419]
[1735091526233,2.87779,3474.9,3474.1,0.0318419]
[1735091526476,2.8777,3475.0,3474.1,0.0318419]
[1735091527588,2.8777,3475.0,3474.1,0.04221555]
[1735091530289,3.60354,3475.0,3474.1,0.04221555]
[1735091531750,2.87755,3475.2,3474.2,0.7836]
[1735091531954,3.0,3475.3,3474.4,0.7836]
[1735091532159,2.87738,3475.4,3474.4,0.7836]
[1735091533128,0.55,3475.7,3474.5,0.7836]
[1735091533344,2.87717,3475.7,3474.6,3.66161]
[1735091533647,2.87717,3475.7,3473.9,11.87877809]
[1735091533648,2.87694,3476.0,3474.9,0.7836]
[1735091533853,2.87694,3476.0,3474.9,2.87773]
[1735091534089,3.65652,3476.2,3475.1,0.7836]
[1735091534200,0.7798,3476.4,3475.1,0.7836]
[1735091534407,2.87687,3476.0,3475.1,0.7836]
[1735091535608,2.8767,3476.3,3475.1,0.7836]
[1735091535808,0.55,3476.3,3475.2,0.7836]
[1735091536009,2.8768,3476.1,3475.2,0.7836]
[1735091536242,2.8768,3476.1,3475.3,0.3949053]
[1735091536408,0.55,3476.3,3475.3,0.3949053]
[1735091536627,2.87695,3475.9,3475.2,0.7836]
[1735091539647,0.55,3476.3,3475.2,0.7836]
[1735091539814,2.8768,3476.1,3475.2,0.7836]
[1735091540158,2.87678,3476.1,3475.3,0.8185]
[1735091540308,2.87686,3476.1,3475.3,0.8185]
[1735091542246,2.87686,3476.1,3475.3,1.2168943]
[1735091543930,3.0,3476.3,3475.3,1.2168943]
[1735091544155,2.87688,3476.0,3475.3,1.2168943]
[1735091544464,2.87688,3476.0,3475.3,0.8185]
[1735091544670,2.87672,3476.2,3475.3,0.8185]
[1735091545421,2.87654,3476.4,3475.3,2.87744]
[1735091545546,2.87626,3476.8,3475.4,0.8185]
[1735091545744,2.87626,3476.8,3475.8,0.8185]
[1735091546280,2.87626,3476.8,3475.8,3.69553]
[1735091546484,2.87598,3477.1,3475.9,0.8185]
[1735091546778,2.87598,3477.1,3476.1,0.8185]
[1735091546979,2.87598,3477.1,3476.3,0.8185]
[1735091548575,2.87631,3476.7,3476.3,0.8185]
[1735091549384,2.87666,3476.3,3475.7,0.8185]
[1735091549671,3.50923179,3477.2,3475.7,0.8185]
[1735091549872,0.55,3477.1,3475.7,0.8185]
[1735091550082,2.87629,3476.7,3475.9,0.8185]
[1735091551145,2.87639,3476.6,3475.9,0.8185]
[1735091551349,2.87671,3476.2,3475.9,0.8185]
[1735091554781,2.87686,3476.0,3475.9,0.8185]
[1735091554988,2.87705,3475.8,3475.1,0.7554]
[1735091555277,2.87774,3475.0,3474.5,0.7554]
[1735091555461,2.87744,3475.3,3474.5,0.7554]
[1735091555669,0.55,3475.2,3474.5,0.7554]
[1735091556168,2.87799,3474.7,3474.5,0.7554]
[1735091556332,2.87799,3474.7,3473.8,0.7554]
[1735091556533,2.87799,3474.7,3473.9,0.55207961]
[1735091561026,0.7838,3474.9,3473.9,0.55207961]
[1735091561027,3.6616,3474.9,3473.9,0.55207961]
[1735091561175,2.8778,3474.9,3473.9,0.55207961]
[1735091561578,2.87758,3475.2,3474.0,2.74953179]
[1735091561779,2.87758,3475.2,3474.2,0.7554]
[1735091562636,3.66114,3475.5,3474.2,0.7554]
[1735091562637,3.66112,3475.5,3474.3,2.87827]
[1735091562784,2.87732,3475.5,3474.5,0.7554]
[1735091563414,0.7838,3475.8,3474.5,0.7554]
[1735091563618,2.87739,3475.4,3474.5,0.7554]
[1735091563884,2.87739,3475.4,3474.6,0.35049318]
[1735091564281,4.07504761,3475.9,3474.7,0.83907698]
[1735091564282,1.19804761,3475.9,3474.7,0.83907698]
[1735091564612,1.19804761,3475.9,3475.0,2.87767]
[1735091564816,2.87683,3476.1,3475.1,0.8103]
[1735091565179,2.87687,3476.0,3475.1,0.8103]
[1735091565385,4.07475761,3476.2,3475.1,0.8103]
[1735091565708,4.07475761,3476.2,3474.9,8.85]
[1735091565709,1.19804761,3476.2,3475.4,2.87735]
[1735091566049,2.87648,3476.5,3475.5,0.8103]
[1735091567299,4.07434761,3476.7,3475.6,3.68749]
[1735091567499,1.19804761,3476.7,3476.0,2.74953179]
[1735091567829,1.19804761,3476.7,3476.1,0.8103]
[1735091568041,1.19804761,3477.0,3476.3,0.8103]
[1735091569635,2.87582,3477.3,3476.3,0.8103]
[1735091570003,2.87564,3477.5,3476.3,3.68691]
[1735091570185,2.87572,3477.4,3476.5,0.792]
[1735091570937,2.87554,3477.7,3476.5,0.792]
[1735091571143,2.87554,3477.7,3476.6,0.792]
[1735091571607,2.87554,3477.7,3476.7,0.792]
[1735091572871,1.19804761,3478.1,3476.9,0.792]
[1735091573079,4.07319761,3478.1,3477.0,0.792]
[1735091573368,2.87525,3478.0,3477.1,0.36968591]
[1735091574173,2.87525,3478.0,3477.0,0.792]
[1735091575985,0.55,3477.9,3477.0,0.792]
[1735091576272,2.87579,3477.4,3477.0,0.792]
[1735091577039,0.8077,3478.0,3477.0,0.792]
[1735091577040,2.87584,3477.3,3477.0,0.792]
[1735091577371,2.87554,3477.7,3477.0,0.792]
[1735091577372,2.87588,3477.2,3477.0,0.792]
[1735091578578,2.87572,3477.4,3477.0,0.792]
[1735091581143,2.87581,3477.3,3477.0,0.792]
[1735091581731,2.87588,3477.2,3477.0,0.792]
[1735091582529,2.87588,3477.2,3476.2,0.792]
[1735091582737,2.87598,3477.1,3476.2,0.792]
[1735091584478,2.87572,3477.4,3476.2,2.8767]
[1735091584673,0.8324,3477.6,3476.3,0.773]
[1735091584879,0.8324,3477.6,3476.0,2.74953179]
[1735091584880,2.87563,3477.5,3476.4,3.64946]
[1735091585050,2.87571,3477.4,3476.6,0.773]